Cogmind - Beta 13 @@@ ROGUE MODE // 2024.04.15 @ 12:49:41 Player: Darch Result: Destroyed by as-03260 with Assembled Blade Performance ------------- Evolutions (0) 0 Regions Visited (2) 400 Robots Destroyed (13) 65 Value Destroyed (262) 262 Prototype IDs (0) 0 Alien Tech Used (0) 0 Bonus (0) 0 TOTAL SCORE: 727 Bonus ------- None Cogmind --------- Core Integrity 0/250 Matter 300/300 Energy 95/100 System Corruption 4% Temperature Hot (299) Movement Core (50) Location -10/Mines Parts ------- > --- POWER (1) -------- (None) > --- PROPULSION (2) --- (None) > --- UTILITY (2) ------ (None) > --- WEAPON (2) ------- (None) > --- INVENTORY (5) ---- Light Ion Engine Flight Unit Flight Unit Medium Matter Pod (100) EM Pulse Gun Peak State ------------ > --- POWER ------------ Light Ion Engine > --- PROPULSION ------- Light Treads Light Treads > --- UTILITY ---------- Small Storage Unit > --- WEAPON ----------- EM Pulse Gun EM Pulse Gun > --- INVENTORY -------- Light Ion Engine Wheel Assault Rifle [Rating: 6] Favorites ----------- Power Light Ion Engine Engine Light Ion Engine Propulsion Light Treads Treads Light Treads Flight Unit Flight Unit Utility Small Storage Unit Storage Small Storage Unit Weapon Assault Rifle Energy Gun EM Pulse Gun Ballistic Gun Assault Rifle Special Melee Weapon Datajack Build | -11 -10 -10 ------- Run | Yrd Mat Min Slots Evolved . | . . . Power . | . . . Propulsion . | . . . Utility . | . . . Weapon . | . . . Parts Attached 13 | 7 2 4 Power 1 | 1 . . Engine 1 | 1 . . Core . | . . . Reactor . | . . . Propulsion 4 | 2 . 2 Treads 2 | 2 . . Leg . | . . . Wheel . | . . . Hover . | . . . Flight 2 | . . 2 Utility 1 | 1 . . Device . | . . . Storage 1 | 1 . . Processor . | . . . Hackware . | . . . Protection . | . . . Artifact . | . . . Weapon 7 | 3 2 2 Energy Gun 3 | 2 1 . Energy Cannon . | . . . Ballistic Gun 2 | 1 . 1 Ballistic Cannon . | . . . Launcher . | . . . Special Weapon . | . . . Impact Weapon . | . . . Slashing Weapon . | . . . Piercing Weapon . | . . . Special Melee Weapon 2 | . 1 1 Unidentified Prototypes . | . . . Parts Lost 9 | . 1 8 Power 1 | . . 1 Propulsion 2 | . . 2 Utility 1 | . . 1 Weapon 5 | . 1 4 Highest Loss Streak 6 | . 1 6 To Critical Strikes . | . . . Average Slot Usage (%) 79 | . 82 68 Engine 12 | . 14 7 Treads 23 | . 28 7 Flight 4 | . . 17 Storage 14 | . 14 14 Energy Gun 8 | . 10 . Ballistic Gun 15 | . 14 20 Naked Turns 2 | . . 2 Heaviest Build 12 | 12 12 11 Greatest Support 40 | 40 40 40 Greatest Overweight (x) 3 | . . 3 Average Overweight (x) . | . . . Largest Inventory Capacity 8 | 8 8 8 Average Capacity 7 | 6 8 7 Most Carried 7 | 5 6 7 Average Carried 4 | 3 4 6 Final Capacity 8 | 8 8 5 Final Carried 5 | 3 5 5 Class Distribution -------------------- 100% | Mutant Dominant Class ---------------- Mutant | -10/Materials Mutant | -10/Mines Resources | -11 -10 -10 ----------- Run | Yrd Mat Min Matter Collected 547 | 224 272 51 Remotely . | . . . Salvage Created 395 | . 343 52 Parts 27 | . 21 6 Haulers Intercepted . | . . . Recyclers Shooed . | . . . Parts Field Recycled . | . . . Retrieved Matter . | . . . Parts Self-Destructed . | . . . Prevented . | . . . Kills | -11 -10 -10 ------- Run | Yrd Mat Min Combat Hostiles Destroyed 11 | . 8 3 Guns 11 | . 8 3 Classes Destroyed 4 | . 4 . Worker 1 | . 1 . Builder 1 | . 1 . Swarmer 6 | . 3 3 Grunt 5 | . 5 . Best Kill Streak 3 | . 3 3 Combat Bots Only 3 | . 2 3 Max Kills in Single Turn 2 | . 1 2 Gunslinging . | . . . Exploded . | . . . Melee . | . . . Uniques/NPCs Destroyed . | . . . Combat | -11 -10 -10 -------- Run | Yrd Mat Min Hostile Shots Fired 121 | . 71 50 Missed 40 | . 27 13 Damage Taken 993 | . 457 536 Core 268 | . 40 228 Absorbed by Shields . | . . . Core Remaining (%) 100 | 100 . . Volleys Fired 54 | . 40 14 Largest 2 | . 2 2 Hottest 60 | . 60 60 Shots Fired 76 | . 60 16 Gun 76 | . 60 16 Cannon . | . . . Launcher . | . . . Special . | . . . Kinetic 55 | . 40 15 Thermal . | . . . Explosive . | . . . Electromagnetic 21 | . 20 1 Robot Hit Streak 36 | . 36 6 Robot Miss Streak 4 | . 4 3 Penetration Max . | . . . Secondary Targets 1 | . 1 . Max Gunslinging Chain 1 | . 1 . Shots Hit Robots 56 | . 47 9 Core Hits 23 | 1 18 4 Critical Kills . | . . . Critical Parts Destroyed . | . . . Critical Strikes 2 | . 2 . Corrupt 2 | . 2 . Melee Attacks 2 | . 1 1 Impact . | . . . Slashing . | . . . Piercing . | . . . Sneak Attacks . | . . . Combat Hostiles . | . . . Follow-up Attacks . | . . . Damage Inflicted 718 | 3 582 133 Guns 709 | . 582 127 Cannons . | . . . Explosions . | . . . Melee . | . . . Ramming 9 | 3 . 6 Kinetic 500 | . 385 115 Thermal . | . . . Explosive . | . . . Electromagnetic 209 | . 197 12 Impact . | . . . Slashing . | . . . Piercing . | . . . Highest Corruption 4 | . . 4 Average Corruption 4 | . . 4 Corruption Purged . | . . . Corruption Blocked . | . . . Effects 1 | . . 1 Heat Flow Errors 1 | . . 1 Overload Shots . | . . . Overflow Damage . | . . . Projectiles . | . . . Explosions . | . . . Melee . | . . . Knockbacks . | . . . Impact . | . . . Kinetic . | . . . Secondary . | . . . Self-Inflicted Damage 2 | . . 2 Shots . | . . . Rammed 5 | 3 . 2 Targets Rammed 5 | 3 . 2 Kicked . | . . . Crushed . | . . . Highest Temperature 299 | . 45 299 Average Temperature 31 | . 23 56 Received Heat Transfer 519 | . 201 318 Siege Activations . | . . . Robots Corrupted . | . . . Combat Hostiles . | . . . Parts Fried . | . . . Impact Corruptions . | . . . Robots Melted . | . . . Combat Hostiles . | . . . Parts Melted . | . . . Heat Transferred . | . . . Parts Sabotaged . | . . . Parts Stolen . | . . . Parts Stripped . | . . . Power Chain Reactions . | . . . Alert | -11 -10 -10 ------- Run | Yrd Mat Min Peak Influence 250 | . 250 207 Initial 97 | . . 97 Average 102 | . 110 164 Maximum Alert Level 1 | . 1 1 Low Security (%) 78 | 100 67 92 Level 1 21 | . 32 7 Level 2 . | . . . Level 3 . | . . . Level 4 . | . . . Level 5 . | . . . High Security . | . . . Max Security . | . . . Squads Dispatched 1 | . 1 . Investigation 1 | . 1 . Extermination . | . . . Reinforcement . | . . . Assault . | . . . Garrison . | . . . Intercept . | . . . Searches Triggered . | . . . Construction Impeded . | . . . Haulers Reinforced . | . . . Active Scanning Responses . | . . . Cargo Convoy Interrupts . | . . . Stealth | -11 -10 -10 --------- Run | Yrd Mat Min Distress Signals 1 | . 1 . Communications Jammed . | . . . Distress Signals . | . . . Times Spotted 30 | . 14 16 Peak Tracking Total 17 | . 6 17 Tactical Retreats 2 | . 1 1 Traps | -11 -10 -10 ------- Run | Yrd Mat Min Traps Triggered . | . . . Indirectly . | . . . Trap Hack Attempts . | . . . Triggered . | . . . Disarmed . | . . . Reprogrammed . | . . . Reused . | . . . Traps Extracted . | . . . Installed . | . . . Triggered . | . . . Machines | -11 -10 -10 ---------- Run | Yrd Mat Min Machines Disabled . | . . . Max in Single Turn . | . . . Machines Repaired . | . . . Machines Dismantled . | . . . Machines Sabotaged . | . . . Overloaded Fab Kills . | . . . Hacking | -11 -10 -10 --------- Run | Yrd Mat Min Machines Accessed 1 | . 1 . Terminals 1 | . 1 . Fabricators . | . . . Repair Stations . | . . . Recycling Units . | . . . Scanalyzers . | . . . Garrison Access . | . . . Total Hacks 4 | . 4 . Successful . | . . . Failed 4 | . 4 . Catastrophic . | . . . Database Lockouts . | . . . Manual . | . . . Terminals 4 | . 4 . Fabricators . | . . . Repair Stations . | . . . Recycling Units . | . . . Scanalyzers . | . . . Garrison Access . | . . . Terminal Hacks . | . . . Fabricator Hacks . | . . . Repair Station Hacks . | . . . Recycling Unit Hacks . | . . . Scanalyzer . | . . . Garrison Access Hacks . | . . . Unauthorized Hacks . | . . . Terminals . | . . . Fabricators . | . . . Repair Stations . | . . . Recycling Units . | . . . Scanalyzers . | . . . Garrison Access . | . . . Data Cores Recovered . | . . . Used . | . . . Hacking Detections 1 | . 1 . Full Trace Events 1 | . 1 . Feedback Events . | . . . Feedback Blocked . | . . . Robot Schematics Acquired . | . . . Robots Built . | . . . Authchips . | . . . Time . | . . . Total Robot Build Rating . | . . . Part Schematics Acquired . | . . . Parts Built . | . . . Authchips . | . . . Time . | . . . Total Part Build Rating . | . . . Parts Repaired . | . . . Time . | . . . Parts Recycled . | . . . Recycled Matter . | . . . Retrieved Matter . | . . . Retrieved Components . | . . . Parts Scanalyzed . | . . . Part Schematics Acquired . | . . . Parts Damaged . | . . . Bothacking | -11 -10 -10 ------------ Run | Yrd Mat Min Used RIF Installer . | . . . Robots Hacked 1 | . . 1 Non-combat . | . . . Combat 1 | . . 1 Robot Hacks Applied 1 | . . 1 parse_system 1 | . . 1 Relay Couplers Released . | . . . Fabnet Peak Effective % . | . . . Robots Rewired . | . . . Allies Hacked . | . . . Hacks Repelled . | . . . Allies | -11 -10 -10 -------- Run | Yrd Mat Min Total Allies . | . . . Largest Group . | . . . Highest-Rated Group . | . . . Highest-Rated Ally . | . . . Total Orders . | . . . Ally Attacks . | . . . Total Damage . | . . . Kills . | . . . Allies Corrupted . | . . . Allies Melted . | . . . Intel | -11 -10 -10 ------- Run | Yrd Mat Min Robot Analysis Total . | . . . Derelict Logs Recovered . | . . . Drone Launches . | . . . Drone Recoveries . | . . . Exploration | -11 -10 -10 ------------- Run | Yrd Mat Min Turns Passed 576 | 99 360 117 Spaces Moved 335 | 53 159 123 Core 6 | 4 . 2 Treads 218 | 49 159 10 Legs . | . . . Wheels . | . . . Hover . | . . . Flight 111 | . . 111 Fastest Speed 37 | 50 160 37 Average Speed 122 | 151 160 61 Slowest Speed 200 | 160 160 200 Overloaded Moves . | . . . Propulsion Burnouts . | . . . Robots Hopped . | . . . Cave-ins Triggered . | . . . Exploration Rate (%) 25 | 4 32 40 Regions Visited 2 Branch Regions 1 Pre-discovered Areas . | . . . Known Exits Taken . | . . . Unknown Exits Taken 2 | 1 1 . Scrap Searched . | . . . Spaces Dug . | . . . Terrain Destroyed . | . . . Melee . | . . . Projectile . | . . . AOE . | . . . Terrain Rammed . | . . . Walls Destroyed . | . . . Machines Disabled . | . . . Actions | -11 -10 -10 --------- Run | Yrd Mat Min Total 422 | 68 204 150 Wait . | . . . Move 333 | 52 158 123 Hop . | . . . Pick Up 11 | 6 3 2 Fast Attach 6 | 3 . 3 Attach 5 | 3 1 1 Detach 2 | . . 2 Swap 2 | 1 1 . Drop 2 | . . 2 Fire 54 | . 40 14 Melee 2 | . 1 1 Ram 2 | . . 2 Kick . | . . . Crush 3 | 3 . . Escape Stasis . | . . . Rewire . | . . . Trap . | . . . Miscellaneous . | . . . Route ------- -11/Scrapyard -10/Materials -10/Mines History --------- Turn | Location | Event 20 | -11/Scrapyard | Discovered new exit (range 15) 100 | -11/Scrapyard | Entered Materials 300 | -10/Materials | Build established: Mutant 436 | -10/Materials | Discovered new exit (range 15) 460 | -10/Materials | Entered Mines 528 | -10/Mines | Assembled infested the area 575 | -10/Mines | Core integrity fell below 50% 577 | -10/Mines | Core integrity fell below 20% 577 | -10/Mines | Destroyed by as-03260 with Assembled Blade Last Messages --------------- 00544_ W6-ECI(g): "Some of my friends down here think you need a mining laser when you travel the depths." 00545_ W6-ECI(g): "They are crazy." 00546_ W6-ECI(g): "Everyone knows a good old rocket launcher goes a long way." 00556_ Seismic Survey Station disabled. 00562_ Assault Rifle destroyed. 00568_ Flight Unit destroyed. 00568_ System corrupted by crushing effect (+4). 00570_ Flight Unit destroyed. 00574_ Jacked as-82641... >>parse_system Reading system data... 00574_ Lgt. Assault Rifle destroyed. 00574_ Datajack destroyed. 00575_ System corrupted: Heat flow error (+263). 00575_ Sml. Storage Unit destroyed. 00576_ Slammed into as-03260. 00577_ Slammed into as-73765. Map ----- +----------------------------------------------------+ | ????????????# ????????? ???????? | | ???????????## #????????? ????????? | | ???????????# ##???????? ?????????? | | ???????????# ##??????? #?????????? | | ????????????# ##?????? #?????????? | | ????????????# ##???## #?????????? | | ???????????## ##?## #?????????? | | ??????????## #?# #??????????? | | ??????????# #?# #???????????? | | ????####### ### #???????????? | | ????# ## #???????????? | | ????# ##### #???????????? | | ????# #???# """ ##???????????? | | #???# ##??## """ ##???????????? | | ##??# ##??##### "" ##??????????? | | ##?# ##?????##### ##?????????? | | #?# #?????????## #?????????? | | ### #??????????# #?????????? | | #??????????# #?????????? | | ##### ##??????????#a #?????????? | | #???#####??????????## #?????????? | | ##??????????????????# ##?????????? | | #??????????????????## aa #####??????????? | | ??????????????????## ##??????????????? | | ?????????????????## a##??????????????? | | ?????????????????# a@#### #?????????? | | ?????????????????# =aa #??????????? | | ?????????????????# ####a #??????????? | | ?????????????????####???## ##??????????? | | ?????????????????????????#####???????????? | | ?????????????????????????????????????????? | | ?????????????????????????????????????????? | | ?????????????????????????????????????????? | | ?????????????????????????????????????????? | | ?????????????????????????????????????????? | | ?????????????????????????????????????????? | | ?????????????????????????????????????????? | | | | | | | | | | | | | | | | | | | | | | | | | | | +----------------------------------------------------+ Best States ------------- Heat Dissipation 25 Energy Generation 10 Energy Capacity 125 Matter Stores 300 Matter Capacity 300 Sight Range 16 Terrain Scan Density 10 Evasion (%) 62 Recoil Reduction 2 Item Schematics ----------------- None Robot Schematics ------------------ None Fabricated ------------ Nothing Alien Tech Used ----------------- None Achievements -------------- None Challenges ------------ None Game ------ Seed BiocellCannonScreen Manual? 0 Play Time 00:10:39 Cumulative 10.1 hours Start 2024.04.15 @ 11:06:22 End 2024.04.15 @ 12:49:41 Sessions 2 Manual Loads 0 Difficulty Rogue Special Mode None Game No. 15 Rogue 14 Adventurer 1 Explorer 0 Win Type - Total 0 Types 0/0/0/0/0/0/0/0/0 Lore% 8 Gallery% 12 Achievement% 14 Wizard Run 0 Options --------- Layout 1 ASCII 0 Keyboard 1 Movement Vi Keybinds 0 Fullscreen 2 Font 24/Smallcaps Map View 50x40 Zoom Use 0% Tactical HUD 1 Map Filters NONE Filters NONE Steam 1 RUN: ca1e57a7-e615-48d2-b7c6-6a226290a45c